fUSD/lending_fUSD_20241222
["ID","MTS","AMOUNT","RATE_DAILY","PERIOD"]
[346267251,1734852643993,-2061.65,0.00019723,2]
[346267252,1734852644003,-1571.23,0.00019723,2]
[346267253,1734852644012,-1218.4,0.00019723,2]
[346267254,1734852644023,-2160.46,0.00019723,2]
[346267255,1734852644033,-500.0,0.00019723,2]
[346267256,1734852644042,-500.0,0.00019723,2]
[346267257,1734852644052,-505.75914912,0.00019723,2]
[346267258,1734852644063,-2697.63,0.00019723,2]
[346267259,1734852644073,-3111.04,0.00019723,2]
[346267260,1734852644082,-844.99,0.00019723,2]
[346267261,1734852644092,-500.0,0.00019723,2]
[346267262,1734852644101,-929.69,0.00019723,2]
[346267263,1734852644109,-7818.68,0.00019723,2]
[346267264,1734852644118,-500.0,0.00019723,2]
[346267265,1734852644127,-508.60513053,0.00019723,2]
[346267266,1734852644136,-191.67171834,0.00019723,2]
[346267267,1734852644145,-500.0,0.00019723,2]
[346267268,1734852644154,-500.0,0.00019723,2]
[346267269,1734852644163,-500.0,0.00019723,2]
[346267270,1734852644172,-597.55,0.00019723,2]
[346267271,1734852644181,-500.0,0.00019723,2]
[346267272,1734852644190,-517.76,0.00019723,2]
[346267273,1734852644200,-500.0,0.00019723,2]
[346267274,1734852644211,-630.18,0.00019723,2]
[346267275,1734852644220,-2224.63,0.00019723,2]
[346267276,1734852644229,-4772.89,0.00019723,2]
[346267277,1734852644238,-3111.72,0.00019723,2]
[346267278,1734852644247,-527.66587826,0.00019723,2]
[346267279,1734852644257,-1550.91,0.00019723,2]
[346267280,1734852644271,-505.72222424,0.00019723,2]
[346267281,1734852644280,-9137.89,0.00019723,2]
[346267282,1734852644290,-500.0,0.00019723,2]
[346267283,1734852644299,-508.87035279,0.00019723,2]
[346267284,1734852644309,-500.0,0.00019723,2]
[346267285,1734852644318,-2696.57,0.00019723,2]
[346267286,1734852644328,-507.97207725,0.00019723,2]
[346267287,1734852644337,-504.6308568,0.00019723,2]
[346267288,1734852644346,-500.0,0.00019723,2]
[346267289,1734852644356,-500.0,0.00019723,2]
[346267290,1734852644365,-510.6930561,0.00019723,2]
[346267291,1734852644374,-1000.0,0.00019723,2]
[346267292,1734852644383,-3712.93,0.00019723,2]
[346267293,1734852644392,-507.41645861,0.00019723,2]
[346267294,1734852644402,-500.0,0.00019723,2]
[346267295,1734852644411,-1659.12,0.00019723,2]
[346267296,1734852644420,-500.0,0.00019723,2]
[346267297,1734852644430,-500.0,0.00019723,2]
[346267298,1734852644439,-500.0,0.00019723,2]
[346267299,1734852644448,-500.0,0.00019723,2]
[346267300,1734852644457,-500.0,0.00019723,2]
[346267301,1734852644466,-500.0,0.00019723,2]
[346267302,1734852644475,-2189.9,0.00019723,2]
[346267303,1734852644484,-963.36,0.00019723,2]
[346267304,1734852644493,-500.0,0.00019723,2]
[346267305,1734852644502,-1244.2,0.00019723,2]
[346267306,1734852644512,-500.0,0.00019723,2]
[346267307,1734852644521,-369.03708655,0.00019724,2]
[346267308,1734852644530,-500.0,0.00019724,2]
[346267309,1734852644539,-500.0,0.00019724,2]
[346267310,1734852644548,-500.0,0.00019724,2]
[346267311,1734852644557,-633.91,0.00019724,2]
[346267312,1734852644567,-500.0,0.00019724,2]
[346267313,1734852644576,-500.0,0.00019724,2]
[346267314,1734852644585,-500.0,0.00019724,2]
[346267315,1734852644594,-500.0,0.00019724,2]
[346267316,1734852644603,-500.0,0.00019724,2]
[346267317,1734852644613,-500.0,0.00019724,2]
[346267318,1734852644622,-500.0,0.00019724,2]
[346267319,1734852644631,-570.91,0.00019724,2]
[346267320,1734852644640,-500.0,0.00019724,2]
[346267321,1734852644649,-500.0,0.00019724,2]
[346267322,1734852644658,-500.0,0.00019724,2]
[346267323,1734852644667,-500.0,0.00019724,2]
[346267324,1734852644676,-500.0,0.00019724,2]
[346267325,1734852644687,-512.92,0.00019724,2]
[346267326,1734852644696,-500.0,0.00019724,2]
[346267327,1734852644705,-399.41,0.00019724,2]
[346267328,1734852644714,-500.0,0.00019724,2]
[346267329,1734852644723,-500.0,0.00019724,2]
[346267330,1734852644732,-500.0,0.00019724,2]
[346267331,1734852644741,-500.0,0.00019724,2]
[346267332,1734852644751,-803.16,0.00019724,2]
[346267333,1734852644761,-500.0,0.00019724,2]
[346267334,1734852644772,-500.0,0.00019724,2]
[346267335,1734852644781,-500.0,0.00019724,2]
[346267336,1734852644791,-500.0,0.00019724,2]
[346267337,1734852644800,-500.0,0.00019724,2]
[346267338,1734852644811,-1053.55,0.00019724,2]
[346267339,1734852644820,-500.0,0.00019724,2]
[346267340,1734852644830,-1349.18,0.00019724,2]
[346267341,1734852644839,-703.27,0.00019724,2]
[346267342,1734852644848,-500.0,0.00019724,2]
[346267343,1734852644857,-500.0,0.00019724,2]
[346267344,1734852644866,-500.0,0.00019724,2]
[346267345,1734852644875,-500.0,0.00019724,2]
[346267346,1734852644884,-500.0,0.00019724,2]
[346267347,1734852644893,-500.0,0.00019724,2]
[346267348,1734852644902,-500.0,0.00019724,2]
[346267349,1734852644912,-500.0,0.00019724,2]
[346267350,1734852644921,-500.0,0.00019724,2]
[346267351,1734852644932,-500.0,0.00019724,2]
[346267352,1734852644942,-500.0,0.00019724,2]
[346267353,1734852644951,-500.0,0.00019724,2]
[346267354,1734852644960,-500.0,0.00019724,2]
[346267355,1734852644970,-500.0,0.00019724,2]
[346267356,1734852644979,-500.0,0.00019724,2]
[346267357,1734852644989,-500.0,0.00019724,2]
[346267358,1734852644998,-500.0,0.00019724,2]
[346267359,1734852645007,-500.0,0.00019724,2]
[346267360,1734852645017,-530.78,0.00019724,2]
[346267361,1734852645026,-500.0,0.00019724,2]
[346267362,1734852645035,-1537.56,0.00019724,2]
[346267363,1734852645044,-508.38,0.00019724,2]
[346267364,1734852645054,-846.31,0.00019724,2]
[346267365,1734852645063,-500.0,0.00019724,2]
[346267366,1734852645073,-1467.22,0.00019724,2]
[346267367,1734852645086,-500.0,0.00019724,2]
[346267368,1734852645096,-664.13,0.00019724,2]
[346267369,1734852645105,-500.0,0.00019724,2]
[346267370,1734852645115,-500.0,0.00019724,2]
[346267371,1734852645124,-295.73842489,0.00019724,2]
[346267372,1734852645134,-1000.0,0.00019726,4]
[346267373,1734852645144,-1000.0,0.00019726,5]
[346267374,1734852645154,-1000.0,0.00019726,6]
[346267375,1734852645164,-1000.0,0.00019726,7]
[346267376,1734852645173,-1000.0,0.00019726,8]
[346267377,1734852645183,-1000.0,0.00019726,9]
[346267378,1734852645192,-1000.0,0.00019726,10]
[346267379,1734852645202,-1000.0,0.00019726,11]
[346267380,1734852645211,-1000.0,0.00019726,12]
[346267381,1734852645220,-1000.0,0.00019726,13]
[346267382,1734852645230,-1000.0,0.00019726,14]
[346267383,1734852645239,-1000.0,0.00019726,15]
[346267384,1734852645249,-1000.0,0.00019726,16]
[346267385,1734852645259,-1000.0,0.00019726,17]
[346267386,1734852645273,-1000.0,0.00019726,18]
[346267387,1734852645283,-1000.0,0.00019726,19]
[346267388,1734852645292,-1000.0,0.00019726,20]
[346267389,1734852645303,-1000.0,0.00019726,21]
[346267390,1734852645312,-1000.0,0.00019726,22]
[346267391,1734852645321,-805.74525284,0.00019726,23]
[346267392,1734852645331,-1349.83525969,0.00019746,2]
[346267393,1734852645340,-202.0,0.0001975,2]
[346267394,1734852645350,-207.0,0.0001975,2]
[346267395,1734852645361,-1349.83525969,0.00019777,2]
[346267396,1734852645373,-1773.92163,0.000198,2]
[346267397,1734852645383,-109751.92442705,0.000198,2]
[346267398,1734852645394,-364.42600604,0.00019803,2]
[346267399,1734852645405,-1349.83525969,0.00019808,2]
[346267400,1734852645415,-500.0,0.00019812,2]
[346267401,1734852645424,-500.0,0.00019812,2]
[346267402,1734852645435,-500.0,0.00019812,2]
[346267403,1734852645444,-500.0,0.00019812,2]
[346267404,1734852645454,-500.0,0.00019812,2]
[346267405,1734852645465,-500.0,0.00019812,2]
[346267406,1734852645476,-500.0,0.00019812,2]
[346267407,1734852645486,-500.0,0.00019812,2]
[346267408,1734852645497,-500.0,0.00019812,2]
[346267409,1734852645507,-500.0,0.00019812,2]
[346267410,1734852645517,-1349.83525969,0.00019838,2]
[346267411,1734852645526,-210.0,0.0001984,2]
[346267412,1734852645536,-211.0,0.0001984,2]
[346267413,1734852645545,-165.70227259,0.00019846,2]
[346267414,1734852645554,-369.83907164,0.00019856,2]
[346267415,1734852645563,-163.182,0.00019857,2]
[346267416,1734852645572,-1349.83525969,0.00019869,2]
[346267417,1734852645582,-364.42600604,0.00019897,2]
[346267418,1734852645591,-190.69909232,0.000199,2]
[346267419,1734852645600,-60000.0,0.000199,2]
[346267420,1734852645610,-200.2081622,0.000199,2]
[346267421,1734852645619,-1349.83525969,0.000199,2]
[346267422,1734852645628,-37717.84774908,0.0001996,2]
[346267423,1734852645637,-503.90880923,0.00019973,2]
[346267424,1734852645647,-501.80926741,0.00019973,2]
[346267425,1734852645658,-504.10072164,0.00019973,2]
[346267426,1734852645669,-500.0,0.00019973,2]
[346267427,1734852645681,-40000.0,0.00019985,2]
[346267428,1734852645690,-154.122216,0.00019989,2]
[346267429,1734852645700,-157.122216,0.0001999,2]
[346267430,1734852645711,-157.122216,0.0001999,3]
[346267431,1734852645723,-21311.78300961,0.0001999,2]
[346267432,1734852645732,-11523.05692145,0.0001999,2]
[346267433,1734852645743,-150.122216,0.00019991,2]
[346267434,1734852645754,-157.122216,0.00019991,3]
[346267435,1734852645764,-157.122216,0.00019992,3]
[346267436,1734852645775,-157.122216,0.00019993,2]
[346267437,1734852645785,-157.122216,0.00019993,3]
[346267438,1734852645795,-157.122216,0.00019994,3]
[346267439,1734852645805,-157.122216,0.00019994,2]
[346267440,1734852645818,-157.122216,0.00019995,2]
[346267441,1734852645828,-157.122216,0.00019995,3]
[346267442,1734852645837,-157.122216,0.00019996,3]
[346267443,1734852645847,-157.122216,0.00019996,2]
[346267444,1734852645856,-819.26,0.00019996,2]
[346267445,1734852645865,-530.96,0.00019996,2]
[346267446,1734852645875,-2853.07,0.00019996,2]
[346267447,1734852645885,-1995.95,0.00019996,2]
[346267448,1734852645895,-890.99,0.00019996,2]
[346267449,1734852645905,-755.37,0.00019996,2]
[346267450,1734852645915,-1612.72,0.00019996,2]
[346267451,1734852645925,-1052.84,0.00019996,2]
[346267452,1734852645935,-828.5,0.00019996,2]
[346267453,1734852645945,-500.0,0.00019996,2]
[346267454,1734852645955,-6379.29,0.00019996,2]
[346267455,1734852645964,-500.0,0.00019996,2]
[346267456,1734852645974,-4170.22,0.00019996,2]
[346267457,1734852645984,-4145.71,0.00019996,2]
[346267458,1734852645994,-500.0,0.00019996,2]
[346267459,1734852646005,-697.6,0.00019996,2]
[346267460,1734852646014,-500.0,0.00019996,2]
[346267461,1734852646025,-500.0,0.00019996,2]
[346267462,1734852646035,-500.0,0.00019996,2]
[346267463,1734852646046,-500.0,0.00019996,2]
[346267464,1734852646055,-603.57,0.00019996,2]
[346267465,1734852646065,-796.43,0.00019996,2]
[346267466,1734852646075,-746.39,0.00019996,2]
[346267467,1734852646085,-500.0,0.00019996,2]
[346267468,1734852646094,-500.0,0.00019997,2]
[346267469,1734852646104,-500.0,0.00019997,2]
[346267470,1734852646114,-500.0,0.00019997,2]
[346267471,1734852646123,-500.0,0.00019997,2]
[346267472,1734852646133,-500.0,0.00019997,2]
[346267473,1734852646144,-500.0,0.00019997,2]
[346267474,1734852646154,-500.0,0.00019997,2]
[346267475,1734852646163,-495.0,0.00019997,2]
[346267476,1734852646173,-500.0,0.00019997,2]
[346267477,1734852646183,-500.0,0.00019997,2]
[346267478,1734852646193,-500.0,0.00019997,2]
[346267479,1734852646203,-508.04546174,0.00019997,2]
[346267480,1734852646212,-517.43,0.00019997,2]
[346267481,1734852646223,-500.0,0.00019997,2]
[346267482,1734852646232,-500.0,0.00019997,2]
[346267483,1734852646242,-500.0,0.00019997,2]
[346267484,1734852646252,-500.0,0.00019997,2]
[346267485,1734852646265,-516.59,0.00019997,2]
[346267486,1734852646275,-242.87787748,0.00019997,2]
[346267487,1734852646284,-500.0,0.00019997,2]
[346267488,1734852646294,-500.0,0.00019997,2]
[346267489,1734852646305,-1462.26,0.00019997,2]
[346267490,1734852646315,-913.79,0.00019997,2]
[346267491,1734852646325,-704.74,0.00019997,2]
[346267492,1734852646335,-500.0,0.00019997,2]
[346267493,1734852646346,-500.0,0.00019997,2]
[346267494,1734852646356,-500.0,0.00019997,2]
[346267495,1734852646365,-500.0,0.00019997,2]
[346267496,1734852646375,-500.0,0.00019997,2]
[346267497,1734852646385,-500.0,0.00019997,2]
[346267498,1734852646395,-500.0,0.00019997,2]
[346267499,1734852646404,-500.0,0.00019997,2]
[346267500,1734852646414,-500.0,0.00019997,2]
[346267501,1734852646424,-500.0,0.00019997,2]
[346267502,1734852646434,-1128.09,0.00019997,2]
[346267503,1734852646444,-1178.328686,0.00019997,2]
[346267504,1734852646454,-500.0,0.00019997,2]
[346267505,1734852646463,-500.0,0.00019997,2]
[346267506,1734852646473,-529.92,0.00019997,2]
[346267507,1734852646482,-500.0,0.00019997,2]
[346267508,1734852646492,-500.0,0.00019997,2]
[346267509,1734852646502,-1038.905135,0.00019997,2]
[346267510,1734852646511,-326.88653331,0.00019997,2]
[346267511,1734852646523,-500.0,0.00019997,2]
[346267512,1734852646533,-795.12,0.00019997,2]
[346267513,1734852646543,-614.94479991,0.00019997,2]
[346267514,1734852646552,-500.0,0.00019997,2]
[346267515,1734852646562,-500.0,0.00019997,2]
[346267516,1734852646571,-500.0,0.00019997,2]
[346267517,1734852646581,-177.36479156,0.00019997,2]
[346267518,1734852646590,-214.67120171,0.00019997,2]
[346267519,1734852646599,-623.73,0.00019997,2]
[346267520,1734852646609,-500.0,0.00019997,2]
[346267521,1734852646619,-500.0,0.00019997,2]
[346267522,1734852646629,-500.0,0.00019997,2]
[346267523,1734852646638,-316.67923319,0.00019997,2]
[346267524,1734852646647,-500.0,0.00019997,2]
[346267525,1734852646657,-500.0,0.00019997,2]
[346267526,1734852646667,-281464.05707426,0.00019997,2]
[346267527,1734852646676,-500.0,0.00019997,2]
[346267528,1734852646687,-500.0,0.00019997,2]
[346267529,1734852646696,-500.0,0.00019997,2]
[346267530,1734852646705,-500.0,0.00019997,2]
[346267531,1734852646715,-500.0,0.00019997,2]
[346267532,1734852646724,-500.0,0.00019997,2]
[346267533,1734852646734,-500.0,0.00019997,2]
[346267534,1734852646744,-500.0,0.00019997,2]
[346267535,1734852646753,-459.14430954,0.00019997,2]
[346267536,1734852646764,-500.0,0.00019997,2]
[346267537,1734852646773,-500.0,0.00019997,2]
[346267538,1734852646783,-937.45,0.00019997,2]
[346267539,1734852646793,-697.24,0.00019997,2]
[346267540,1734852646802,-3578.15,0.00019997,2]
[346267541,1734852646812,-666.27,0.00019997,2]
[346267542,1734852646822,-663.73,0.00019997,2]
[346267543,1734852646831,-2172.89,0.00019997,2]
[346267544,1734852646841,-500.0,0.00019997,2]
[346267545,1734852646851,-500.0,0.00019997,2]
[346267546,1734852646861,-572.06,0.00019997,2]
[346267547,1734852646871,-527.75,0.00019997,2]
[346267548,1734852646881,-500.0,0.00019997,2]
[346267549,1734852646891,-500.0,0.00019997,2]
[346267550,1734852646901,-500.0,0.00019997,2]
[346267551,1734852646910,-500.0,0.00019997,2]
[346267552,1734852646920,-500.0,0.00019997,2]
[346267553,1734852646930,-607.13,0.00019997,2]
[346267554,1734852646940,-681.81,0.00019997,2]
[346267555,1734852646950,-742.02,0.00019997,2]
[346267556,1734852646960,-1569.9,0.00019997,2]
[346267557,1734852646969,-1211.88,0.00019997,2]
[346267558,1734852646979,-500.0,0.00019997,2]
[346267559,1734852646988,-712.63,0.00019997,2]
[346267560,1734852646998,-500.0,0.00019997,2]
[346267561,1734852647008,-500.0,0.00019997,2]
[346267562,1734852647017,-594.26,0.00019997,2]
[346267563,1734852647027,-1117.47,0.00019997,2]
[346267564,1734852647037,-500.0,0.00019997,2]
[346267565,1734852647197,-3707.07,0.00019997,2]
[346267566,1734852647207,-500.0,0.00019997,2]
[346267567,1734852647218,-500.0,0.00019997,2]
[346267568,1734852647228,-951.31,0.00019997,2]
[346267569,1734852647238,-500.0,0.00019997,2]
[346267570,1734852647247,-866.93,0.00019997,2]
[346267571,1734852647257,-11217.45,0.00019997,2]
[346267572,1734852647270,-500.0,0.00019997,2]
[346267573,1734852647279,-781.07,0.00019997,2]
[346267574,1734852647289,-875.21,0.00019997,2]
[346267575,1734852647299,-601.19,0.00019997,2]
[346267576,1734852647308,-3916.9,0.00019997,2]
[346267577,1734852647318,-1024.61,0.00019997,2]
[346267578,1734852647333,-1496.0,0.00019997,2]
[346267579,1734852647344,-658.42,0.00019997,2]
[346267580,1734852647354,-735.11,0.00019997,2]
[346267581,1734852647363,-2113.24,0.00019997,2]
[346267582,1734852647372,-500.0,0.00019997,2]
[346267583,1734852647382,-151.86271537,0.00019997,2]
[346267584,1734852647391,-500.0,0.00019997,2]
[346267585,1734852647400,-574.16,0.00019997,2]
[346267586,1734852647410,-500.0,0.00019997,2]
[346267587,1734852647419,-500.0,0.00019997,2]
[346267588,1734852647429,-500.0,0.00019997,2]
[346267589,1734852647439,-500.0,0.00019997,2]
[346267590,1734852647448,-1200.25,0.00019997,2]
[346267591,1734852647457,-536.09,0.00019997,2]
[346267592,1734852647467,-726.46,0.00019997,2]
[346267593,1734852647476,-500.0,0.00019997,2]
[346267594,1734852647485,-500.0,0.00019997,2]
[346267595,1734852647495,-522.72,0.00019997,2]
[346267596,1734852647505,-500.0,0.00019997,2]
[346267597,1734852647514,-741.59,0.00019997,2]
[346267598,1734852647523,-5091.32,0.00019997,2]
[346267599,1734852647533,-3336.51,0.00019997,2]
[346267600,1734852647542,-1162.24,0.00019997,2]
[346267601,1734852647551,-500.0,0.00019997,2]
[346267602,1734852647561,-13974.57,0.00019997,2]
[346267603,1734852647570,-675.31,0.00019997,2]
[346267604,1734852647579,-2061.65,0.00019997,2]
[346267605,1734852647589,-1571.23,0.00019997,2]
[346267606,1734852647599,-1218.4,0.00019997,2]
[346267607,1734852647608,-2160.46,0.00019997,2]
[346267608,1734852647618,-500.0,0.00019997,2]
[346267609,1734852647627,-500.0,0.00019997,2]
[346267610,1734852647637,-2697.63,0.00019997,2]
[346267611,1734852647647,-3111.04,0.00019997,2]
[346267612,1734852647656,-844.99,0.00019997,2]
[346267613,1734852647666,-929.69,0.00019997,2]
[346267614,1734852647675,-7818.68,0.00019997,2]
[346267615,1734852647686,-500.0,0.00019997,2]
[346267616,1734852647695,-500.0,0.00019997,2]
[346267617,1734852647705,-500.0,0.00019997,2]
[346267618,1734852647714,-597.55,0.00019997,2]
[346267619,1734852647724,-500.0,0.00019997,2]
[346267620,1734852647733,-517.76,0.00019997,2]
[346267621,1734852647742,-500.0,0.00019997,2]
[346267622,1734852647752,-630.18,0.00019997,2]
[346267623,1734852647761,-2224.63,0.00019997,2]
[346267624,1734852647770,-4772.89,0.00019997,2]
[346267625,1734852647780,-3111.72,0.00019997,2]
[346267626,1734852647790,-1550.91,0.00019997,2]
[346267627,1734852647799,-9137.89,0.00019997,2]
[346267628,1734852647808,-500.0,0.00019997,2]
[346267629,1734852647818,-2696.57,0.00019997,2]
[346267630,1734852647826,-500.0,0.00019997,2]
[346267631,1734852647836,-500.0,0.00019997,2]
[346267632,1734852647845,-1000.0,0.00019997,2]
[346267633,1734852647855,-3712.93,0.00019997,2]
[346267634,1734852647864,-500.0,0.00019997,2]
[346267635,1734852647873,-1659.12,0.00019997,2]
[346267636,1734852647882,-500.0,0.00019997,2]
[346267637,1734852647892,-500.0,0.00019997,2]
[346267638,1734852647901,-500.0,0.00019997,2]
[346267639,1734852647911,-500.0,0.00019997,2]
[346267640,1734852647920,-500.0,0.00019997,2]
[346267641,1734852647929,-2189.9,0.00019997,2]
[346267642,1734852647941,-963.36,0.00019997,2]
[346267643,1734852647950,-594.07464327,0.00019997,2]
[346267644,1734852647960,-1244.2,0.00019997,2]
[346267645,1734852647969,-500.0,0.00019997,2]
[346267646,1734852647979,-360.65,0.00019998,2]
[346267647,1734852647988,-500.0,0.00019998,2]
[346267648,1734852647998,-500.0,0.00019998,2]
[346267649,1734852648007,-633.91,0.00019998,2]
[346267650,1734852648016,-500.0,0.00019998,2]
[346267651,1734852648025,-500.0,0.00019998,2]
[346267652,1734852648035,-500.0,0.00019998,2]
[346267653,1734852648044,-500.0,0.00019998,2]
[346267654,1734852648053,-500.0,0.00019998,2]
[346267655,1734852648063,-500.0,0.00019998,2]
[346267656,1734852648072,-500.0,0.00019998,2]
[346267657,1734852648081,-500.0,0.00019998,2]
[346267658,1734852648090,-500.0,0.00019998,2]
[346267659,1734852648100,-500.0,0.00019998,2]
[346267660,1734852648110,-500.0,0.00019998,2]
[346267661,1734852648119,-500.0,0.00019998,2]
[346267662,1734852648128,-512.92,0.00019998,2]
[346267663,1734852648137,-500.0,0.00019998,2]
[346267664,1734852648146,-213.88,0.00019998,2]
[346267665,1734852648156,-500.0,0.00019998,2]
[346267666,1734852648165,-500.0,0.00019998,2]
[346267667,1734852648174,-500.0,0.00019998,2]
[346267668,1734852648183,-803.16,0.00019998,2]
[346267669,1734852648192,-500.0,0.00019998,2]
[346267670,1734852648201,-500.0,0.00019998,2]
[346267671,1734852648211,-500.0,0.00019998,2]
[346267672,1734852648220,-500.0,0.00019998,2]
[346267673,1734852648230,-500.0,0.00019998,2]
[346267674,1734852648239,-1053.55,0.00019998,2]
[346267675,1734852648248,-500.0,0.00019998,2]
[346267676,1734852648257,-1349.18,0.00019998,2]
[346267677,1734852648271,-703.27,0.00019998,2]
[346267678,1734852648280,-500.0,0.00019998,2]
[346267679,1734852648289,-500.0,0.00019998,2]
[346267680,1734852648298,-500.0,0.00019998,2]
[346267681,1734852648308,-500.0,0.00019998,2]
[346267682,1734852648317,-500.0,0.00019998,2]
[346267683,1734852648327,-500.0,0.00019998,2]
[346267684,1734852648337,-500.0,0.00019998,2]
[346267685,1734852648347,-500.0,0.00019998,2]
[346267686,1734852648356,-500.0,0.00019998,2]
[346267687,1734852648365,-500.0,0.00019998,2]
[346267688,1734852648375,-500.0,0.00019998,2]
[346267689,1734852648384,-500.0,0.00019998,2]
[346267690,1734852648394,-500.0,0.00019998,2]
[346267691,1734852648403,-500.0,0.00019998,2]
[346267692,1734852648412,-500.0,0.00019998,2]
[346267693,1734852648421,-500.0,0.00019998,2]
[346267694,1734852648431,-500.0,0.00019998,2]
[346267695,1734852648440,-500.0,0.00019998,2]
[346267696,1734852648450,-530.78,0.00019998,2]
[346267697,1734852648459,-500.0,0.00019998,2]
[346267698,1734852648469,-1537.56,0.00019998,2]
[346267699,1734852648478,-508.38,0.00019998,2]
[346267700,1734852648488,-846.31,0.00019998,2]
[346267701,1734852648498,-274.84,0.00019998,2]
[346267702,1734852648507,-1467.22,0.00019998,2]
[346267703,1734852648516,-500.0,0.00019998,2]
[346267704,1734852648526,-664.13,0.00019998,2]
[346267705,1734852648535,-500.0,0.00019998,2]
[346267706,1734852648544,-500.0,0.00019998,2]
[346267707,1734852648554,-151.25718564,0.00019999,2]
[346267708,1734852648563,-500.0,0.00019999,2]
[346267709,1734852648573,-966.0,0.00019999,2]
[346267710,1734852648583,-1566.04238828,0.0002,2]
[346267711,1734852648592,-733804.96327739,0.0002,3]
[346267712,1734852648601,-8120.26132922,0.0002,3]
[346267713,1734852648611,-150.0,0.0002,4]
[346267714,1734852648620,-20132578.46790612,0.0002,2]
[346267715,1734852648865,-8209.09879246,0.0002,2]
[346267716,1734852648876,-19588.0,0.0002,2]
[346267717,1734852648898,-3605.22927025,0.0002,2]
[346267718,1734852648922,-59795.66102447,0.0002,2]
[346267719,1734852649150,-500.0,0.00019449,2]
[346267720,1734852649159,-500.0,0.00019723,2]
[346267721,1734852649168,-500.0,0.00019997,2]
[346267722,1734852649177,-2924.99696,0.0002,2]
[346267723,1734852649237,-2430.05870274,0.0002,2]
[346267724,1734852649249,-2263.41957,0.0002,2]
[346267725,1734852649260,-1526.265,0.0002,2]
[346267726,1734852649274,-10693.2126024,0.0002,2]
[346267727,1734852649460,-698.384581,0.00019778,2]
[346267728,1734852649512,-2032.95232067,0.00019778,2]
[346267729,1734852649522,-1338.04767933,0.0002,2]
[346267730,1734852649533,-633.62739059,0.0002,2]
[346267731,1734852649544,-709.07707001,0.0002,2]
[346267732,1734852649555,-4913.15181181,0.0002,2]
[346267733,1734852649782,-13366.98773041,0.0002,2]
[346267734,1734852649793,-9863.48892246,0.0002,2]
[346267735,1734852649804,-25346.17032397,0.0002,2]
[346267736,1734852649893,-232972.34287716,0.0002,2]
[346267737,1734852649905,-1888.58382117,0.0002,2]
[346267738,1734852649916,-165105.5971982,0.0002,2]
[346267740,1734853196164,155.31,0.00010137,2]
[346267741,1734853506749,-3305.270142,0.000165,2]
[346267746,1734853769314,-200.2081622,0.00016417,2]
[346267750,1734853832457,-288.48,0.0001707,2]
[346267751,1734853832466,-11.52,0.00017464,2]
[346267779,1734853838007,-14719.19509274,0.00017464,2]
[346267780,1734853838017,-5080.62544842,0.00017564,2]
[346267781,1734853838026,-369.83907164,0.00017664,2]
[346267782,1734853838035,-150.0,0.00018,2]
[346267783,1734853838045,-150.0,0.00018,2]
[346267784,1734853838054,-150.0,0.00018,2]
[346267785,1734853838063,-768.91,0.00018566,2]